[Event "44th Chess Olympiad Women 2022"]
[Site "Chennai"]
[Date "2022.08.09"]
[Round "11.72"]
[White "Makda Araya Fessehaye"]
[Black "Inthavong, Maly"]
[Result "0-1"]
[ECO "C41"]
[WhiteElo "1242"]
[BlackElo "1231"]
[Annotator "NA RC COMBH"]
[PlyCount "96"]
[EventDate "2022.07.29"]
[EventType "team-tourn"]
[EventCountry "IND"]
[SourceTitle "playchess.com"]
[Source "ChessBase"]
[SourceQuality "1"]
[WhiteTeam "Eritrea"]
[BlackTeam "Laos"]
[WhiteTeamCountry "ERI"]
[BlackTeamCountry "LAO"]
[TimeControl "40/5400+30:1800+30"]

1. e4 {[%emt 0:02:35]} e5 {[%emt 0:00:10]} 2. Nf3 {[%emt 0:00:38]} d6 {[%emt 0:00:38]} 3. Nc3 {[%emt 0:00:32]} c6 {[%emt 0:00:39]} 4. Bc4 {[%emt 0:00:56]} Bg4 {[%emt 0:00:20]} 5. h3 {[%emt 0:01:15]} Bh5 {[%emt 0:00:13]} 6. Be2 {[%emt 0:00:54]} Be7 {[%emt 0:01:23]} 7. d3 {[%emt 0:00:47]} Nf6 {[%emt 0:01:17]} 8. Be3 {[%emt 0:02:46]} Nbd7 {[%emt 0:03:16]} 9. Nh4 {[%emt 0:02:16]} Bg6 {[%emt 0:01:02]} 10. Nxg6 {[%emt 0:04:32]} fxg6 {[%emt 0:00:25]} 11. d4 {[%emt 0:01:47]} O-O {[%emt 0:00:44]} 12. Bc4+ {[%emt 0:04:57]} Kh8 {[%emt 0:00:23]} 13. Qe2 {[%emt 0:03:11]} Nh5 {[%emt 0:00:31]} 14. g4 {[%emt 0:06:11]} Nf4 {[%emt 0:00:41]} 15. Bxf4 {[%emt 0:02:55]} Rxf4 {[%emt 0:00:36]} 16. Qe3 {[%emt 0:00:49]} Bh4 {[%emt 0:02:32]} 17. Rf1 {[%emt 0:01:18]} Qf8 {[%emt 0:02:09]} 18. dxe5 {[%emt 0:04:11]} dxe5 {[%emt 0:01:58]} 19. O-O-O {[%emt 0:01:46]} Nc5 {[%emt 0:01:23]} 20. f3 {[%emt 0:03:36]} Bg5 {[%emt 0:06:42]} 21. Kb1 {[%emt 0:01:28]} Rxg4 {[%emt 0:01:15]} 22. Qf2 {[%emt 0:05:35]} Bh4 {[%emt 0:00:30]} 23. Qe2 {[%emt 0:01:46]} Rg3 {[%emt 0:00:56]} 24. b4 {[%emt 0:07:45]} Na6 {[%emt 0:00:20]} 25. a3 {[%emt 0:00:25]} c5 {[%emt 0:03:41]} 26. b5 {[%emt 0:03:58]} Nc7 {[%emt 0:01:08]} 27. Nd5 {[%emt 0:01:19]} Rc8 {[%emt 0:01:06]} 28. f4 {[%emt 0:04:01]} Nxd5 {[%emt 0:01:55]} 29. Bxd5 {[%emt 0:01:34]} exf4 {[%emt 0:00:49]} 30. Rf3 {[%emt 0:03:36]} b6 {[%emt 0:01:42]} 31. Rdf1 {[%emt 0:03:22]} g5 {[%emt 0:01:10]} 32. e5 {[%emt 0:02:39]} Re8 {[%emt 0:01:28]} 33. e6 {[%emt 0:01:13]} Qd6 {[%emt 0:00:37]} 34. Qe4 {[%emt 0:03:26]} Rg2 {[%emt 0:01:25]} 35. Qf5 {[%emt 0:00:49]} Re2 {[%emt 0:02:14]} 36. Be4 {[%emt 0:04:32]} Rxe4 {[%emt 0:02:17]} 37. Qxe4 {[%emt 0:02:06]} h6 {[%emt 0:01:03]} 38. Rd3 {[%emt 0:01:59]} Qb8 {[%emt 0:01:39]} 39. Rfd1 {[%emt 0:01:55]} Bf2 {[%emt 0:00:37]} 40. Rd8 {[%emt 0:01:42]} Rxd8 {[%emt 0:01:50]} 41. Rxd8+ {[%emt 0:01:23]} Qxd8 {[%emt 0:00:32]} 42. Qb7 {[%emt 0:32:45]} Qd1+ {[%emt 0:30:28]} 43. Kb2 {[%emt 0:00:50]} Bd4+ {[%emt 0:00:34]} 44. Kb3 {[%emt 0:00:58]} Qb1+ {[%emt 0:00:40]} 45. Kc4 {[%emt 0:00:49]} Qxc2+ {[%emt 0:00:17]} 46. Kd5 {[%emt 0:02:09]} Qg2+ {[%emt 0:00:11]} 47. Kd6 {[%emt 0:00:35]} Qxb7 {[%emt 0:00:13]} 48. e7 {[%emt 0:01:07]} Qxe7+ {[%emt 0:00:27]} 0-1

[Event "44th Chess Olympiad Women 2022"]
[Site "Chennai"]
[Date "2022.08.09"]
[Round "11.75"]
[White "da Silva, Sonizia A.Tilman"]
[Black "Johnson, Daijah"]
[Result "0-1"]
[ECO "B08"]
[WhiteElo "1507"]
[BlackElo "1480"]
[Annotator "NA RC COMBH"]
[PlyCount "115"]
[EventDate "2022.07.29"]
[EventType "team-tourn"]
[EventCountry "IND"]
[SourceTitle "playchess.com"]
[Source "ChessBase"]
[SourceQuality "1"]
[WhiteTeam "TLS"]
[BlackTeam "Bahamas"]
[BlackTeamCountry "BAH"]
[TimeControl "40/5400+30:1800+30"]

1. d4 {[%emt 0:00:02]} Nf6 {[%emt 0:00:08]} 2. Bf4 {[%emt 0:00:13]} g6 {[%emt 0:00:23]} 3. Nf3 {[%emt 0:00:16]} Bg7 {[%emt 0:00:23]} 4. Nc3 {[%emt 0:00:23]} d6 {[%emt 0:01:27]} 5. e4 {[%emt 0:00:36]} Bg4 {[%emt 0:02:07]} 6. Bc4 {[%emt 0:00:22]} Nbd7 {[%emt 0:01:36]} 7. h3 {[%emt 0:00:33]} Bxf3 {[%emt 0:01:29]} 8. Qxf3 {[%emt 0:00:35]} e5 {[%emt 0:00:55]} 9. dxe5 {[%emt 0:01:20]} dxe5 {[%emt 0:01:40]} 10. Bg5 {[%emt 0:00:55]} c6 {[%emt 0:02:14]} 11. O-O {[%emt 0:00:34]} O-O {[%emt 0:01:48]} 12. Rad1 {[%emt 0:00:59]} Qc7 {[%emt 0:01:22]} 13. a4 {[%emt 0:02:20]} Rad8 {[%emt 0:02:01]} 14. b4 {[%emt 0:01:09]} h6 {[%emt 0:02:24]} 15. Bh4 {[%emt 0:01:06]} g5 {[%emt 0:01:31]} 16. Bg3 {[%emt 0:00:33]} a5 {[%emt 0:08:07]} 17. b5 {[%emt 0:01:59]} Nb6 {[%emt 0:04:08]} 18. Bb3 {[%emt 0:00:57]} Qe7 {[%emt 0:02:46]} 19. Qf5 {[%emt 0:03:42]} Nfd7 {[%emt 0:05:32]} 20. Rd2 {[%emt 0:04:48]} Nc5 {[%emt 0:03:02]} 21. Rxd8 {[%emt 0:00:45]} Rxd8 {[%emt 0:00:30]} 22. Ba2 {[%emt 0:01:09]} Nbxa4 {[%emt 0:01:11]} 23. Nxa4 {[%emt 0:01:01]} Nxa4 {[%emt 0:00:25]} 24. bxc6 {[%emt 0:00:31]} bxc6 {[%emt 0:00:20]} 25. Ra1 {[%emt 0:00:30]} Nc3 {[%emt 0:10:30]} 26. Bc4 {[%emt 0:02:53]} Rd1+ {[%emt 0:00:49]} 27. Rxd1 {[%emt 0:00:19]} Nxd1 {[%emt 0:00:10]} 28. Qc8+ {[%emt 0:00:39]} Bf8 {[%emt 0:01:12]} 29. Qxc6 {[%emt 0:00:30]} Qc5 {[%emt 0:00:16]} 30. Qxc5 {[%emt 0:01:14]} Bxc5 {[%emt 0:00:20]} 31. Bxe5 {[%emt 0:01:49]} Nxf2 {[%emt 0:00:23]} 32. Kh2 {[%emt 0:04:51]} Nxe4 {[%emt 0:01:24]} 33. Bb3 {[%emt 0:03:55]} Bd6 {[%emt 0:00:23]} 34. Bxd6 {[%emt 0:00:42]} Nxd6 {[%emt 0:00:09]} 35. c4 {[%emt 0:00:09]} Ne4 {[%emt 0:01:24]} 36. Bc2 {[%emt 0:00:52]} Nc5 {[%emt 0:00:32]} 37. Kg1 {[%emt 0:00:39]} Kg7 {[%emt 0:01:19]} 38. Kf2 {[%emt 0:00:23]} Kf6 {[%emt 0:00:10]} 39. Ke3 {[%emt 0:01:11]} Ke5 {[%emt 0:00:20]} 40. Bd3 {[%emt 0:04:32]} Nxd3 {[%emt 0:00:57]} 41. Kxd3 {[%emt 0:30:05]} a4 {[%emt 0:30:29]} 42. Kc3 {[%emt 0:00:08]} a3 {[%emt 0:00:17]} 43. Kb3 {[%emt 0:01:28]} Kd4 {[%emt 0:00:20]} 44. Kxa3 {[%emt 0:00:52]} Kxc4 {[%emt 0:00:07]} 45. Kb2 {[%emt 0:00:19]} Kd3 {[%emt 0:00:18]} 46. g4 {[%emt 0:01:20]} Ke3 {[%emt 0:00:14]} 47. Kc3 {[%emt 0:00:15]} Kf3 {[%emt 0:00:14]} 48. Kd4 {[%emt 0:00:28]} Kg3 {[%emt 0:00:16]} 49. Ke5 {[%emt 0:00:21]} Kxh3 {[%emt 0:00:46]} 50. Kf5 {[%emt 0:02:43]} f6 {[%emt 0:00:25]} 51. Kxf6 {[%emt 0:01:11]} Kxg4 {[%emt 0:00:10]} 52. Ke5 {[%emt 0:00:27]} Kf3 {[%emt 0:00:36]} 53. Kf5 {[%emt 0:02:37]} g4 {[%emt 0:00:14]} 54. Kg6 {[%emt 0:01:12]} g3 {[%emt 0:00:10]} 55. Kxh6 {[%emt 0:00:13]} g2 {[%emt 0:00:12]} 56. Kg6 {[%emt 0:00:05]} g1=Q+ {[%emt 0:00:11]} 57. Kf6 {[%emt 0:00:03]} Qc5 {[%emt 0:00:24]} 58. Ke6 {[%emt 0:00:24]} 0-1

[Event "44th Chess Olympiad Women 2022"]
[Site "Chennai"]
[Date "2022.08.09"]
[Round "11.78"]
[White "Morales Santos, Natasha"]
[Black "Seine, Rose Berline"]
[Result "1-0"]
[ECO "D35"]
[WhiteElo "1924"]
[BlackElo "1679"]
[Annotator "TA"]
[PlyCount "127"]
[EventDate "2022.07.29"]
[EventType "team-tourn"]
[EventCountry "IND"]
[SourceTitle "playchess.com"]
[Source "ChessBase"]
[SourceQuality "1"]
[WhiteTeam "Puerto Rico"]
[BlackTeam "Haiti"]
[WhiteTeamCountry "PUR"]
[BlackTeamCountry "HAI"]
[TimeControl "40/5400+30:1800+30"]

{[%evp 17,127,22,21,21,21,24,25,16,29,25,63,40,55,23,48,47,42,33,52,55,89,79,93,80,90,89,103,90,95,83,134,134,142,142,198,147,147,147,147,147,147,147,147,147,210,197,228,229,222,222,318,307,337,355,338,343,339,308,344,345,357,352,356,335,327,345,381,185,197,185,180,159,145,90,90,-3,196,56,63,51,70,0,0,0,0,0,29975,29976,29976,29978,29978,29978,29979,29980,29979,29976,29975,29977,29977,29978,29978,29979,29979,29980,29980,29981,29981,29980,29980,29981,29981,29982]} 1. d4 {[%emt 0:00:14]} d5 {[%emt 0:00:06]} 2. c4 {[%emt 0:00:12]} e6 {[%emt 0:00:04]} 3. Nc3 {[%emt 0:00:12]} Nf6 {[%emt 0:00:04]} 4. cxd5 {[%emt 0:00:12]} exd5 {[%emt 0:00:11]} 5. Bg5 {[%emt 0:00:15]} c6 {[%emt 0:00:09]} 6. e3 {[%emt 0:00:12]} Bf5 {[%emt 0:00:16]} 7. Qf3 {[%emt 0:15:03]} Bg6 {[%emt 0:01:14]} 8. Bxf6 {[%emt 0:00:55]} Qxf6 {[%emt 0:00:21]} 9. Qxf6 {[%emt 0:00:15]} gxf6 {[%emt 0:00:02]} 10. Rc1 {[%emt 0:02:59] D35: Queen's Gambit Declined: Exchange Variation.} Nd7 {[%emt 0:00:31]} 11. Nge2 {[%emt 0:09:40]} Bd6 {[%emt 0:00:12] [#]} 12. h4 $146 {[%emt 0:02:52] White has an edge.} ({Predecessor:} 12. g3 f5 13. Nf4 h5 14. h4 Nf6 15. f3 Kd7 16. Kf2 Rae8 17. Bd3 Re7 18. Rhe1 {½-½ (53) Tichy,S (2152)-Vondra,Z (2183) Czech Republic 2015}) 12... h6 {[%emt 0:05:39]} 13. g3 {[%emt 0:00:02]} (13. Kd2 {keeps more tension.} Nb6 14. Nf4 h5 15. g3) 13... f5 {[%emt 0:00:25]} 14. Bh3 {[%emt 0:05:17]} Nf6 {[%emt 0:00:16]} 15. f3 {[%emt 0:03:59]} Bh7 {[%emt 0:03:04]} 16. Kf2 {[%emt 0:02:41]} Ke7 {[%emt 0:02:15]} 17. Nf4 {[%emt 0:04:03]} Rae8 {[%emt 0:00:21]} 18. a3 {[%emt 0:08:59]} Kd8 {[%emt 0:00:02]} 19. b4 {[%emt 0:00:45]} a6 {[%emt 0:00:09]} 20. Na4 {[%emt 0:01:19]} Kc7 {[%emt 0:00:35]} 21. Nc5 {[%emt 0:05:54] Pair of Knights!} Re7 {[%emt 0:00:07]} 22. Rc3 {[%emt 0:01:40] White is more active.} Ra8 {[%emt 0:01:03]} 23. Rhc1 {[%emt 0:01:13]} Bxc5 {[%emt 0:05:36]} (23... Bxf4 $142 24. gxf4 Bg6) 24. bxc5 $16 {[%emt 0:07:11]} Rb8 {[%emt 0:02:10]} 25. Rb1 {[%emt 0:00:42]} b6 {[%emt 0:01:35]} (25... Bg6 $16 26. Rcb3 Ree8) 26. Rxb6 {[%emt 0:00:47]} (26. a4 $18) 26... Rxb6 {[%emt 0:00:04]} 27. cxb6+ {[%emt 0:00:11]} Kxb6 {[%emt 0:00:10]} 28. Nd3 {[%emt 0:05:04]} Nd7 {[%emt 0:03:27]} 29. Bf1 {[%emt 0:05:30] Black must now prevent Nb4.} a5 {[%emt 0:01:26] Against Nb4} 30. Be2 {[%emt 0:02:07]} f6 {[%emt 0:00:23]} (30... Re8 $16 31. Nf4 Nf6) 31. Bd1 {[%emt 0:00:35]} Bg8 {[%emt 0:01:17]} 32. Ba4 {[%emt 0:00:32]} Nb8 {[%emt 0:00:28]} 33. Nc5 {[%emt 0:00:43]} Bf7 {[%emt 0:00:36]} (33... Bh7 $142 34. h5 Ka7) 34. Bc2 $18 {[%emt 0:00:59]} Be6 {[%emt 0:04:44]} 35. Rb3+ {[%emt 0:03:27]} Ka7 {[%emt 0:00:22]} 36. Nxe6 {[%emt 0:00:33]} Rxe6 {[%emt 0:00:08]} 37. Bxf5 {[%emt 0:00:04][%mdl 4096] Endgame KRB-KRN} Re7 {[%emt 0:00:23]} 38. e4 {[%emt 0:01:54]} dxe4 {[%emt 0:01:00]} 39. fxe4 {[%emt 0:00:50]} Na6 {[%emt 0:00:33]} 40. Ke3 {[%emt 0:01:15]} Nc7 {[%emt 0:01:32]} 41. Kd3 {[%emt 0:34:14]} Ne8 {[%emt 0:31:21]} 42. d5 {[%emt 0:00:00]} (42. Kc4 $142) 42... cxd5 {[%emt 0:00:00]} 43. exd5 {[%emt 0:00:00]} Re5 {[%emt 0:00:00]} 44. Be4 {[%emt 0:00:00] aiming for Kd4.} Nd6 {[%emt 0:00:00]} 45. Bg2 {[%emt 0:00:00]} (45. Bf3 $142) 45... Re1 $16 {[%emt 0:00:00]} 46. Kd4 {[%emt 0:00:00]} ({White should play} 46. g4 $16) 46... Rg1 $2 {[%emt 0:00:00]} (46... Nf5+ $11 {and Black stays safe.} 47. Kc4 Ne3+ 48. Kc5 Rc1+ 49. Kd6 Nxg2) 47. Bh3 {[%emt 0:00:00]} ({White must play} 47. Be4 $18) 47... Rd1+ $14 {[%emt 0:00:00]} 48. Kc5 {[%emt 0:00:00]} Nb7+ {[%emt 0:00:00]} 49. Kc6 {[%emt 0:00:00]} (49. Kb5 $1 $14) 49... Rc1+ $11 {[%emt 0:00:00]} 50. Kb5 {[%emt 0:00:00]} Rc5+ {[%emt 0:00:00]} 51. Ka4 {[%emt 0:00:00]} Rxd5 $2 {[%emt 0:00:00][%mdl 8192] [#]} (51... Rc4+ $11 52. Kb5 Rc5+ 53. Ka4 Rc4+ 54. Kb5 Rc5+) 52. Rxb7+ $1 {[%emt 0:00:24][%mdl 512] White mates.} Kxb7 {[%emt 0:00:00] KR-KB} (52... Ka6 53. Rd7) 53. Bg2 {[%emt 0:00:00]} Kc6 {[%emt 0:00:00]} 54. Bxd5+ {[%emt 0:00:00]} Kxd5 {[%emt 0:00:00]} 55. Kxa5 {[%emt 0:00:00] K3P-KPP} Kc5 {[%emt 0:00:00]} 56. a4 {[%emt 0:00:00][%cal Ba3a4,Ba4a5,Ba5a6][%mdl 32]} h5 {[%emt 0:00:00]} 57. Ka6 {[%emt 0:00:00]} Kc6 {[%emt 0:00:00]} 58. a5 {[%emt 0:00:28]} f5 {[%emt 0:00:00]} 59. Ka7 {[%emt 0:00:09]} Kc7 {[%emt 0:00:00]} 60. a6 {[%emt 0:00:02]} Kc8 {[%emt 0:00:00]} 61. Kb6 {[%emt 0:00:17]} Kb8 {[%emt 0:00:00]} 62. a7+ {[%emt 0:00:00]} Ka8 {[%emt 0:00:00]} 63. Kc6 {[%emt 0:00:01]} ({Worse is} 63. Ka6 f4 64. gxf4 $11) 63... Kxa7 {[%emt 0:00:00]} 64. Kd6 {[%emt 0:00:08] Weighted Error Value: White=0.20 (precise) /Black=0.28 (precise)} 1-0

[Event "44th Chess Olympiad Women 2022"]
[Site "Chennai"]
[Date "2022.08.09"]
[Round "11.78"]
[White "Vega Jimenez, Keyshla M."]
[Black "Cadeau, Merisena"]
[Result "1-0"]
[ECO "B24"]
[WhiteElo "1653"]
[BlackElo "1439"]
[Annotator "NA RC COMBH"]
[PlyCount "95"]
[EventDate "2022.07.29"]
[EventType "team-tourn"]
[EventCountry "IND"]
[SourceTitle "playchess.com"]
[Source "ChessBase"]
[SourceQuality "1"]
[WhiteTeam "Puerto Rico"]
[BlackTeam "Haiti"]
[WhiteTeamCountry "PUR"]
[BlackTeamCountry "HAI"]
[TimeControl "40/5400+30:1800+30"]

1. e4 {[%emt 0:00:04]} c5 {[%emt 0:00:04]} 2. Nc3 {[%emt 0:00:18]} Nc6 {[%emt 0:00:35]} 3. g3 {[%emt 0:00:07]} d6 {[%emt 0:00:24]} 4. Bg2 {[%emt 0:00:09]} Nf6 {[%emt 0:00:32]} 5. d3 {[%emt 0:00:56]} e6 {[%emt 0:00:15]} 6. f4 {[%emt 0:02:10]} d5 {[%emt 0:05:33]} 7. e5 {[%emt 0:05:33]} Nd7 {[%emt 0:00:17]} 8. Nf3 {[%emt 0:01:19]} a6 {[%emt 0:01:52]} 9. Bd2 {[%emt 0:03:32]} Qc7 {[%emt 0:01:54]} 10. a3 {[%emt 0:04:13]} Be7 {[%emt 0:01:13]} 11. h3 {[%emt 0:05:36]} b5 {[%emt 0:01:03]} 12. Ne2 {[%emt 0:04:09]} Bb7 {[%emt 0:03:39]} 13. O-O {[%emt 0:01:32]} O-O {[%emt 0:00:40]} 14. Qe1 {[%emt 0:04:35]} Rac8 {[%emt 0:01:26]} 15. g4 {[%emt 0:02:46]} Rfd8 {[%emt 0:01:31]} 16. Ng3 {[%emt 0:05:30]} Qb6 {[%emt 0:07:34]} 17. Kh1 {[%emt 0:02:48]} c4 {[%emt 0:02:15]} 18. dxc4 {[%emt 0:04:16]} dxc4 {[%emt 0:00:17]} 19. Ne4 {[%emt 0:03:24]} Qc7 {[%emt 0:20:46]} 20. Bc3 {[%emt 0:07:38]} a5 {[%emt 0:03:01]} 21. Qe2 {[%emt 0:05:00]} Nc5 {[%emt 0:04:37]} 22. Nfg5 {[%emt 0:07:08]} Nd4 {[%emt 0:11:27]} 23. Qf2 {[%emt 0:07:16]} Nxe4 {[%emt 0:07:13]} 24. Nxe4 {[%emt 0:00:51]} Bc5 {[%emt 0:06:29]} 25. Nxc5 {[%emt 0:04:08]} Bxg2+ {[%emt 0:07:40]} 26. Kxg2 {[%emt 0:00:08]} Qxc5 {[%emt 0:01:07]} 27. Rad1 {[%emt 0:00:42]} Qc6+ {[%emt 0:00:00]} 28. Kg3 {[%emt 0:02:19]} Nb3 {[%emt 0:08:30]} 29. cxb3 {[%emt 0:00:18]} Rd3+ {[%emt 0:01:16]} 30. Rxd3 {[%emt 0:00:32]} cxd3 {[%emt 0:00:23]} 31. Qd4 {[%emt 0:01:37]} Qc7 {[%emt 0:01:00]} 32. Qxd3 {[%emt 0:00:27]} Rb8 {[%emt 0:00:27]} 33. Rd1 {[%emt 0:00:25]} h6 {[%emt 0:00:20]} 34. Qd6 {[%emt 0:01:01]} Qa7 {[%emt 0:00:40]} 35. Bd4 {[%emt 0:00:46]} Qb7 {[%emt 0:00:21]} 36. Rc1 {[%emt 0:01:19]} Ra8 {[%emt 0:00:49]} 37. Qc6 {[%emt 0:00:52]} Qb8 {[%emt 0:00:40]} 38. Qd7 {[%emt 0:00:36]} Qd8 {[%emt 0:00:58]} 39. Rc7 {[%emt 0:01:13]} Qe8 {[%emt 0:00:35]} 40. Qxe8+ {[%emt 0:00:13]} Rxe8 {[%emt 0:00:06]} 41. Kf3 {[%emt 0:31:10]} Rb8 {[%emt 0:30:18]} 42. Ra7 {[%emt 0:01:01]} Rd8 {[%emt 0:00:00]} 43. Ke4 {[%emt 0:05:05]} Rb8 {[%emt 0:00:00]} 44. Rxa5 {[%emt 0:00:00]} Kf8 {[%emt 0:00:00]} 45. a4 {[%emt 0:00:00]} b4 {[%emt 0:00:00]} 46. Ra6 {[%emt 0:00:00]} Ke8 {[%emt 0:00:00]} 47. Rb6 {[%emt 0:00:00]} Rxb6 {[%emt 0:00:00]} 48. Bxb6 {[%emt 0:00:00]} 1-0

[Event "44th Chess Olympiad Women 2022"]
[Site "Chennai"]
[Date "2022.08.09"]
[Round "11.78"]
[White "Paul, Theophane"]
[Black "Rivera Negron Yanira"]
[Result "1/2-1/2"]
[ECO "A07"]
[WhiteElo "1493"]
[BlackElo "1770"]
[Annotator "NA RC COMBH"]
[PlyCount "81"]
[EventDate "2022.07.29"]
[EventType "team-tourn"]
[EventCountry "IND"]
[SourceTitle "playchess.com"]
[Source "ChessBase"]
[SourceQuality "1"]
[WhiteTeam "Haiti"]
[BlackTeam "Puerto Rico"]
[WhiteTeamCountry "HAI"]
[BlackTeamCountry "PUR"]
[TimeControl "40/5400+30:1800+30"]

1. Nf3 {[%emt 0:00:03]} d5 {[%emt 0:00:09]} 2. g3 {[%emt 0:00:08]} Nf6 {[%emt 0:00:20]} 3. Bg2 {[%emt 0:00:10]} Bf5 {[%emt 0:00:44]} 4. d3 {[%emt 0:01:03]} e6 {[%emt 0:01:02]} 5. O-O {[%emt 0:00:12]} Be7 {[%emt 0:00:50]} 6. Nbd2 {[%emt 0:02:54]} h6 {[%emt 0:00:41]} 7. Re1 {[%emt 0:04:28]} O-O {[%emt 0:01:30]} 8. c4 {[%emt 0:03:28]} c6 {[%emt 0:00:30]} 9. Qb3 {[%emt 0:05:09]} Qc7 {[%emt 0:01:54]} 10. cxd5 {[%emt 0:05:21]} cxd5 {[%emt 0:02:04]} 11. Nf1 {[%emt 0:04:39]} Nc6 {[%emt 0:02:15]} 12. Bf4 {[%emt 0:04:01]} e5 {[%emt 0:01:19]} 13. Bd2 {[%emt 0:04:31]} e4 {[%emt 0:02:53]} 14. Bf4 {[%emt 0:02:57]} Bd6 {[%emt 0:02:20]} 15. Bxd6 {[%emt 0:04:43]} Qxd6 {[%emt 0:00:05]} 16. dxe4 {[%emt 0:01:41]} dxe4 {[%emt 0:01:12]} 17. Rad1 {[%emt 0:06:06]} Qb4 {[%emt 0:04:48]} 18. Qxb4 {[%emt 0:06:48]} Nxb4 {[%emt 0:00:10]} 19. Nd4 {[%emt 0:00:22]} Bg6 {[%emt 0:00:52]} 20. a3 {[%emt 0:00:38]} Nbd5 {[%emt 0:00:35]} 21. Bh3 {[%emt 0:06:47]} Rfd8 {[%emt 0:06:44]} 22. Nc2 {[%emt 0:06:57]} Bh5 {[%emt 0:02:53]} 23. Nd4 {[%emt 0:03:03]} Rd6 {[%emt 0:06:36]} 24. f3 {[%emt 0:03:51]} e3 {[%emt 0:05:33]} 25. Rd3 {[%emt 0:01:36]} Bg6 {[%emt 0:09:23]} 26. Nf5 {[%emt 0:02:38]} Rb6 {[%emt 0:02:47]} 27. b4 {[%emt 0:00:43]} Re8 {[%emt 0:02:00]} 28. Rc1 {[%emt 0:01:40]} Re5 {[%emt 0:03:24]} 29. N1xe3 {[%emt 0:05:27]} Bxf5 {[%emt 0:05:26]} 30. Nxf5 {[%emt 0:03:28]} Rxe2 {[%emt 0:00:54]} 31. f4 {[%emt 0:03:47]} a5 {[%emt 0:06:40]} 32. Nd4 {[%emt 0:02:40]} Rb2 {[%emt 0:05:49]} 33. Bf5 {[%emt 0:01:46]} g6 {[%emt 0:00:31]} 34. bxa5 {[%emt 0:00:28]} Rb1 {[%emt 0:04:34]} 35. Rdd1 {[%emt 0:01:07]} Rxc1 {[%emt 0:00:31]} 36. Rxc1 {[%emt 0:00:03]} Ra6 {[%emt 0:00:12]} 37. Bc8 {[%emt 0:01:18]} Rxa5 {[%emt 0:00:37]} 38. Bxb7 {[%emt 0:00:14]} Rxa3 {[%emt 0:00:20]} 39. Re1 {[%emt 0:01:26]} Ne3 {[%emt 0:02:04]} 40. Bh1 {[%emt 0:01:13]} Nfg4 {[%emt 0:00:57]} 41. h3 {[%emt 0:04:09]} 1/2-1/2

[Event "44th Chess Olympiad Women 2022"]
[Site "Chennai"]
[Date "2022.08.09"]
[Round "11.78"]
[White "Dunat, Kinberlie"]
[Black "Alvarado Perez, Coralys M."]
[Result "0-1"]
[ECO "D02"]
[WhiteElo "1398"]
[BlackElo "1471"]
[Annotator "NA RC COMBH"]
[PlyCount "84"]
[EventDate "2022.07.29"]
[EventType "team-tourn"]
[EventCountry "IND"]
[SourceTitle "playchess.com"]
[Source "ChessBase"]
[SourceQuality "1"]
[WhiteTeam "Haiti"]
[BlackTeam "Puerto Rico"]
[WhiteTeamCountry "HAI"]
[BlackTeamCountry "PUR"]
[TimeControl "40/5400+30:1800+30"]

1. d4 {[%emt 0:00:08]} d5 {[%emt 0:00:06]} 2. Bf4 {[%emt 0:00:11]} Nf6 {[%emt 0:00:21]} 3. Nf3 {[%emt 0:00:12]} e6 {[%emt 0:00:21]} 4. e3 {[%emt 0:00:16]} Be7 {[%emt 0:00:11]} 5. Nbd2 {[%emt 0:00:40]} b6 {[%emt 0:01:07]} 6. c3 {[%emt 0:01:15]} c5 {[%emt 0:00:37]} 7. dxc5 {[%emt 0:02:41]} bxc5 {[%emt 0:00:32]} 8. Be2 {[%emt 0:01:05]} O-O {[%emt 0:00:18]} 9. O-O {[%emt 0:00:05]} Nc6 {[%emt 0:00:52]} 10. Qc2 {[%emt 0:01:49]} Nh5 {[%emt 0:02:33]} 11. Ne5 {[%emt 0:03:36]} Nxf4 {[%emt 0:00:47]} 12. exf4 {[%emt 0:00:19]} Qc7 {[%emt 0:03:06]} 13. Nxc6 {[%emt 0:01:33]} Qxc6 {[%emt 0:00:08]} 14. Bd3 {[%emt 0:00:32]} g6 {[%emt 0:00:19]} 15. Nf3 {[%emt 0:00:54]} Qc7 {[%emt 0:02:22]} 16. g3 {[%emt 0:01:05]} Bb7 {[%emt 0:00:20]} 17. Ne1 {[%emt 0:03:30]} Rad8 {[%emt 0:04:54]} 18. a4 {[%emt 0:03:45]} a6 {[%emt 0:07:01]} 19. b3 {[%emt 0:02:10]} Bf6 {[%emt 0:00:34]} 20. Rc1 {[%emt 0:01:57]} Rfe8 {[%emt 0:04:00]} 21. Ng2 {[%emt 0:02:17]} e5 {[%emt 0:01:48]} 22. fxe5 {[%emt 0:00:00]} Bxe5 {[%emt 0:00:27]} 23. Rfe1 {[%emt 0:01:17]} Qc6 {[%emt 0:02:28]} 24. c4 {[%emt 0:03:29]} Bd4 {[%emt 0:01:42]} 25. Rxe8+ {[%emt 0:03:09]} Rxe8 {[%emt 0:00:12]} 26. Bf1 {[%emt 0:00:17]} dxc4 {[%emt 0:00:45]} 27. Qxc4 {[%emt 0:02:46]} Qf3 {[%emt 0:00:19]} 28. Rc2 {[%emt 0:04:16]} h5 {[%emt 0:03:34]} 29. Qd3 {[%emt 0:02:04]} Qf6 {[%emt 0:03:10]} 30. Re2 {[%emt 0:01:31]} Rd8 {[%emt 0:01:16]} 31. Qc4 {[%emt 0:03:08]} Qf3 {[%emt 0:01:44]} 32. Qc2 {[%emt 0:01:18]} Kg7 {[%emt 0:01:12]} 33. Re7 {[%emt 0:02:37]} Bd5 {[%emt 0:02:43]} 34. Qe2 {[%emt 0:01:25]} Qxe2 {[%emt 0:08:07]} 35. Bxe2 {[%emt 0:00:16]} Bxb3 {[%emt 0:00:04]} 36. Bxa6 {[%emt 0:00:22]} Bxa4 {[%emt 0:00:10]} 37. Bc4 {[%emt 0:00:31]} Be8 {[%emt 0:00:14]} 38. Nf4 {[%emt 0:00:31]} Kf8 {[%emt 0:00:50]} 39. Rb7 {[%emt 0:01:11]} Ra8 {[%emt 0:00:34]} 40. Kf1 {[%emt 0:02:25]} Ra1+ {[%emt 0:03:08]} 41. Ke2 {[%emt 0:30:40]} Rc1 {[%emt 0:31:21]} 42. Kd2 {[%emt 0:01:24]} Rxc4 {[%emt 0:00:21]} 0-1